fUST/lending_fUST_20260118
["ID","MTS","AMOUNT","RATE_DAILY","PERIOD"]
[402652576,1768746639007,-251.11897888,0.00014449,2]
[402652577,1768746639016,-260.4103811,0.00014449,2]
[402652578,1768746639026,-270.0455652,0.00014449,2]
[402652579,1768746639037,-280.03725112,0.00014449,2]
[402652580,1768746639047,-290.39862941,0.00014449,2]
[402652581,1768746639056,-301.1433787,0.00014449,2]
[402652582,1768746639066,-1152.0,0.00014492,2]
[402652583,1768746639075,-5000.0,0.0001451,2]
[402652584,1768746639085,-2000.0,0.00014514,7]
[402652585,1768746639095,-1041.66666667,0.00014576,2]
[402652586,1768746639104,-2148.0,0.0001458,2]
[402652587,1768746639113,-629.0,0.0001458,2]
[402652588,1768746639123,-1367.0,0.0001458,2]
[402652589,1768746639132,-417.0,0.0001458,2]
[402652590,1768746639142,-417.0,0.0001458,2]
[402652591,1768746639151,-715.0,0.0001458,2]
[402652592,1768746639160,-199.584,0.0001458,2]
[402652593,1768746639170,-1500.0,0.00014795,2]
[402652594,1768746639180,-461.67526834,0.00014997,2]
[402652595,1768746639189,-2230.315306,0.00014997,2]
[402652596,1768746639198,-5000.0,0.00015,2]
[402652597,1768746639208,-12488.93,0.00015002,2]
[402652598,1768746639217,-2000.0,0.00015329,7]
[402652599,1768746639227,-2000.0,0.00015342,2]
[402652600,1768746639240,-478.75725327,0.00015545,2]
[402652601,1768746639250,-2312.83697232,0.00015545,2]
[402652602,1768746639259,-500.0,0.00015749,30]
[402652603,1768746639269,-481.7252093,0.00015749,30]
[402652604,1768746639278,-500.0,0.00015749,30]
[402652605,1768746639287,-500.0,0.00015749,30]
[402652606,1768746639296,-500.0,0.00015749,30]
[402652607,1768746639305,-500.0,0.00015749,30]
[402652608,1768746639314,-432.30062826,0.00015749,30]
[402652609,1768746639323,-500.0,0.00015749,30]
[402652610,1768746639332,-500.0,0.00015749,30]
[402652611,1768746639341,-518.2747907,0.00015749,30]
[402652612,1768746639350,-902.12624676,0.00015749,30]
[402652613,1768746639359,-151.71666189,0.00015749,30]
[402652614,1768746639368,-500.0,0.00015749,30]
[402652615,1768746639378,-500.0,0.00015749,30]
[402652616,1768746639388,-500.0,0.00015749,30]
[402652617,1768746639397,-500.0,0.00015749,30]
[402652618,1768746639406,-500.0,0.00015749,30]
[402652619,1768746639416,-500.0,0.00015749,30]
[402652620,1768746639425,-500.0,0.00015749,30]
[402652621,1768746639435,-500.0,0.00015749,30]
[402652622,1768746639443,-500.0,0.00015749,30]
[402652623,1768746639452,-500.0,0.00015749,30]
[402652624,1768746639462,-500.0,0.00015749,30]
[402652625,1768746639471,-500.0,0.00015749,30]
[402652626,1768746639479,-2500.0,0.0001589,2]
[402652627,1768746639489,-546.0,0.00015941,2]
[402652628,1768746639498,-622.85180654,0.00015999,2]
[402652630,1768746639508,-496.47127164,0.00016093,2]
[402652631,1768746639517,-2398.4119403,0.00016093,2]
[402652632,1768746639526,-2000.0,0.00016144,7]
[402652633,1768746639535,-500.0,0.00016438,2]
[402652634,1768746639545,-643.44105545,0.00016438,2]
[402652635,1768746639554,-500.0,0.00016438,2]
[402652636,1768746639564,-500.0,0.00016438,2]
[402652637,1768746639573,-164.37684434,0.00016438,2]
[402652638,1768746639582,-3000.0,0.00016438,2]
[402652639,1768746639591,-3875.0,0.00016452,2]
[402652640,1768746639601,-729.0,0.00016482,2]
[402652641,1768746639610,-729.0,0.00016512,2]
[402652642,1768746639619,-729.0,0.00016512,2]
[402652643,1768746639628,-514.84070869,0.00016641,2]
[402652644,1768746639637,-2487.15318209,0.00016641,2]
[402652645,1768746639649,-3875.0,0.00016772,2]
[402652646,1768746639662,-3875.0,0.00016832,2]
[402652647,1768746639672,-729.0,0.00016839,2]
[402652648,1768746639681,-3875.0,0.00016884,2]
[402652649,1768746639691,-729.0,0.00016884,2]
[402652650,1768746639700,-2000.0,0.00016959,7]
[402652651,1768746639710,-500.0,0.00016986,2]
[402652653,1768746639720,-2031.52330925,0.00016986,2]
[402652655,1768746639729,-200.0,0.00017,2]
[402652656,1768746639739,-200.0982317,0.00017,2]
[402652658,1768746639748,-31711.68323709,0.00017,2]
[402652659,1768746639758,-200.0,0.00017009,2]
[402652660,1768746639767,-68375.27910713,0.0001701,3]
[402652661,1768746639776,-3875.0,0.00017151,2]
[402652663,1768746639785,-160.0,0.00017151,2]
[402652665,1768746639794,-729.0,0.00017159,2]
[402652667,1768746639803,-533.88981491,0.00017189,2]
[402652668,1768746639814,-2579.17784983,0.00017189,2]
[402652669,1768746639823,-729.0,0.00017211,2]
[402652670,1768746639832,-3875.0,0.0001738,2]
[402652671,1768746639842,-3875.0,0.0001738,2]
[402652673,1768746639851,-5000.0,0.00017412,2]
[402652675,1768746639860,-3875.0,0.00017442,2]
[402652676,1768746639869,-160.0,0.00017472,2]
[402652677,1768746639878,-160.0,0.00017472,2]
[402652678,1768746639887,-729.0,0.00017531,2]
[402652679,1768746639897,-3875.0,0.00017531,2]
[402652680,1768746639906,-3875.0,0.00017531,2]
[402652682,1768746639915,-729.0,0.00017531,2]
[402652684,1768746639924,-500.0,0.00017534,2]
[402652686,1768746639933,-3875.0,0.00017561,2]
[402652688,1768746639943,-2148.0,0.0001758,2]
[402652690,1768746639953,-629.0,0.0001758,2]
[402652692,1768746639966,-1367.0,0.0001758,2]
[402652694,1768746639974,-417.0,0.0001758,2]
[402652696,1768746639984,-417.0,0.0001758,2]
[402652698,1768746639993,-715.0,0.0001758,2]
[402652700,1768746640003,-178.0,0.0001758,2]
[402652703,1768746640016,-3875.0,0.0001766,2]
[402652705,1768746640025,-740.0,0.0001766,2]
[402652707,1768746640035,-160.0,0.00017732,2]
[402652709,1768746640045,-553.64373807,0.00017737,2]
[402652711,1768746640055,-2674.60743027,0.00017737,2]
[402652713,1768746640064,-2000.0,0.00017774,7]
[402652715,1768746640074,-160.0,0.00017792,2]
[402652717,1768746640083,-32201.17759267,0.000178,3]
[402652719,1768746640093,-729.0,0.00017844,2]
[402652721,1768746640102,-729.0,0.00017881,2]
[402652723,1768746640111,-3875.0,0.00017881,2]
[402652725,1768746640120,-729.0,0.00017881,2]
[402652727,1768746640130,-729.0,0.00017881,2]
[402652729,1768746640139,-438.0092033,0.00017895,2]
[402652731,1768746640149,-729.0,0.00017917,2]
[402652733,1768746640158,-729.0,0.00017917,2]
[402652735,1768746640169,-3875.0,0.0001798,2]
[402652737,1768746640178,-729.0,0.0001798,2]
[402652739,1768746640188,-695.65266705,0.00017999,2]
[402652741,1768746640198,-9795.95874488,0.00018,2]
[402652743,1768746640208,-485.00495456,0.00018,2]
[402652745,1768746640217,-500.0,0.00018082,2]
[402652747,1768746640227,-729.0,0.00018237,2]
[402652750,1768746640237,-574.12855637,0.00018285,2]
[402652753,1768746640247,-3875.0,0.0001834,2]
[402652755,1768746640256,-3875.0,0.0001834,2]
[402652757,1768746640265,-2000.0,0.00018589,7]
[402652759,1768746640275,-211.99082696,0.00018599,2]
[402652761,1768746640284,-500.0,0.0001863,2]
[402652763,1768746640293,-595.37131296,0.00018833,2]
[402652765,1768746640302,-5000.0,0.00018863,2]
[402652767,1768746640311,-303.10001603,0.000189,2]
[402652769,1768746640320,-303.10001603,0.000189,2]
[402652771,1768746640329,-729.0,0.00018906,2]
[402652773,1768746640339,-303.10001603,0.00019089,2]
[402652775,1768746640352,-303.10001603,0.00019089,2]
[402652777,1768746640361,-379.14,0.000191,2]
[402652779,1768746640371,-500.0,0.00019178,2]
[402652781,1768746640380,-36319.38,0.000192,2]
[402652783,1768746640389,-7220.75,0.000192,2]
[402652785,1768746640398,-345.4,0.000192,2]
[402652787,1768746640408,-350.51,0.000192,2]
[402652789,1768746640417,-167.88,0.000192,2]
[402652792,1768746640427,-1602.80018467,0.00019217,2]
[402652793,1768746640437,-303.10001603,0.00019278,2]
[402652796,1768746640447,-303.10001603,0.00019278,2]
[402652798,1768746640456,-353.98840074,0.00019381,2]
[402652800,1768746640465,-2000.0,0.00019404,7]
[402652802,1768746640474,-303.10001603,0.00019467,2]
[402652804,1768746640483,-303.10001603,0.00019467,2]
[402652806,1768746640493,-303.10001603,0.00019656,2]
[402652808,1768746640502,-303.10001603,0.00019656,2]
[402652810,1768746640511,-500.0,0.00019726,2]
[402652811,1768746640520,-160.0,0.00019817,2]
[402652814,1768746640530,-454.65002405,0.00019845,4]
[402652815,1768746640541,-454.65002405,0.00019845,4]
[402652818,1768746640552,-768.45352756,0.00019999,2]
[402652820,1768746640561,-8568.0,0.0002,2]
[402652822,1768746640571,-689.09340572,0.0002,2]
[402652824,1768746640580,-14710.55600105,0.0002,2]
[402652826,1768746640590,-254.1059467,0.0002,21]
[402652828,1768746640599,-371.83976624,0.0002,2]
[402652830,1768746640609,-218209.69158984,0.0002,2]
[402652831,1768746640618,-921.96070303,0.0002,2]
[402652834,1768746640627,-2319.73181347,0.0002,120]
[402652836,1768746640636,-78361.54018571,0.0002,2]
[402652837,1768746640646,-23000.0,0.0002,2]
[402652839,1768746640657,-202.86086242,0.0002,2]
[402652840,1768746640666,-504.60121177,0.0002,2]
[402652841,1768746640678,-300.0,0.0002,2]
[402652842,1768746640688,-454.65002405,0.00020034,4]
[402652843,1768746640698,-454.65002405,0.00020034,4]
[402652844,1768746640707,-500.0,0.000201,7]
[402652845,1768746640716,-2000.0,0.00020219,7]
[402652846,1768746640726,-454.65002405,0.00020223,4]
[402652847,1768746640735,-454.65002405,0.00020223,4]
[402652848,1768746640745,-500.0,0.00020274,2]
[402652849,1768746640754,-454.65002405,0.00020412,4]
[402652850,1768746640764,-423.96709503,0.00020412,4]
[402652851,1768746640773,-5229.37,0.00020547,2]
[402652852,1768746640783,-2148.0,0.0002058,2]
[402652853,1768746640792,-629.0,0.0002058,2]
[402652854,1768746640801,-1367.0,0.0002058,2]
[402652855,1768746640811,-417.0,0.0002058,2]
[402652856,1768746640820,-417.0,0.0002058,2]
[402652857,1768746640830,-715.0,0.0002058,2]
[402652858,1768746640839,-178.0,0.0002058,2]
[402652859,1768746640849,-454.65002405,0.00020601,4]
[402652860,1768746640859,-1390.28520804,0.0002061,2]
[402652861,1768746640868,-345.4,0.000207,2]
[402652862,1768746640878,-350.51,0.000207,2]
[402652863,1768746640888,-500.0,0.00020822,2]
[402652864,1768746640898,-201.98350775,0.00020899,2]
[402652865,1768746640909,-256.65909202,0.000209,2]
[402652866,1768746640919,-36319.38,0.000209,2]
[402652867,1768746640928,-7220.75,0.000209,2]
[402652868,1768746640938,-303.19130124,0.00020932,3]
[402652870,1768746640948,-500.0,0.00021,7]
[402652872,1768746640961,-277.54604952,0.00021,2]
[402652874,1768746640970,-1563.37612009,0.00021,10]
[402652876,1768746640980,-299.999999,0.00021,2]
[402652878,1768746640990,-50000.0,0.00021,2]
[402652880,1768746641001,-2000.0,0.00021034,7]
[402652882,1768746641011,-3875.0,0.00021097,2]
[402652884,1768746641019,-500.0,0.0002137,2]
[402652886,1768746641029,-1040.57529192,0.000215,2]
[402652888,1768746641040,-12871.37891035,0.000215,2]
[402652890,1768746641050,-729.0,0.00021701,2]
[402652892,1768746641060,-2000.0,0.00021849,7]
[402652895,1768746641070,-500.0,0.00021918,5]
[402652897,1768746641079,-841.25438806,0.00021999,2]
[402652898,1768746641088,-503.23,0.00022,7]
[402652901,1768746641098,-154811.53293039,0.00022,2]
[402652902,1768746641107,-184.0,0.00022,2]
[402652905,1768746641117,-5004.94321536,0.00022,2]
[402652906,1768746641126,-172.18436323,0.00022,10]
[402652908,1768746641136,-677.12931274,0.00022,20]
[402652910,1768746641146,-185.0,0.00022027,6]
[402652913,1768746641156,-500.0,0.000221,7]
[402652915,1768746641165,-243.29329672,0.0002222,2]
[402652917,1768746641174,-167.88,0.000223,7]
[402652918,1768746641183,-1234.94,0.000224,2]
[402652921,1768746641193,-300.0,0.00022466,2]
[402652923,1768746641202,-200.0,0.00022466,2]
[402652924,1768746641211,-250.0,0.00022466,2]
[402652926,1768746641220,-500.0,0.00022466,5]
[402652929,1768746641230,-1034.24217857,0.000225,2]
[402652931,1768746641239,-345.4,0.000225,7]
[402652932,1768746641248,-350.51,0.000225,7]
[402652934,1768746641258,-2000.0,0.00022664,7]
[402652936,1768746641267,-183.98079226,0.00022802,2]
[402652938,1768746641276,-1300.0,0.00023,5]
[402652940,1768746641286,-1041.66666667,0.00023,3]
[402652942,1768746641295,-450.0,0.00023014,2]
[402652944,1768746641305,-250.0,0.00023014,2]
[402652946,1768746641315,-350.0,0.00023014,2]
[402652948,1768746641326,-500.0,0.000231,7]
[402652950,1768746641335,-186.0,0.00023123,9]
[402652952,1768746641345,-5229.37,0.00023287,4]
[402652955,1768746641354,-1040.51198783,0.0002337,2]
[402652957,1768746641373,-162.23044371,0.0002337,5]
[402652959,1768746641383,-36319.38,0.000234,2]
[402652962,1768746641393,-7220.75,0.000234,14]
[402652964,1768746641402,-2000.0,0.00023479,7]
[402652966,1768746641411,-600.0,0.00023562,2]
[402652967,1768746641421,-211.23470705,0.00023562,2]
[402652970,1768746641432,-450.0,0.00023562,2]
[402652972,1768746641442,-2148.0,0.0002358,2]
[402652973,1768746641452,-629.0,0.0002358,2]
[402652975,1768746641462,-417.0,0.0002358,2]
[402652978,1768746641471,-417.0,0.0002358,2]
[402652980,1768746641481,-715.0,0.0002358,2]
[402652982,1768746641490,-178.0,0.0002358,2]
[402652984,1768746641499,-200.0,0.00023608,30]
[402652986,1768746641508,-200.0,0.00023608,30]
[402652988,1768746641517,-200.0,0.00023608,30]
[402653018,1768746641526,-177.0,0.00023707,120]
[402653021,1768746641792,-2010.87928147,0.00023713,2]
[402653023,1768746641802,-173.43533131,0.00023843,30]
[402653025,1768746641811,-2435.0,0.0002387,10]
[402653027,1768746641820,-257.0,0.0002387,10]
[402653029,1768746641828,-309.0,0.0002387,10]
[402653031,1768746641837,-729.0,0.00023903,3]
[402653033,1768746641846,-7703.29277305,0.00023998,2]
[402653035,1768746641855,-914.05524857,0.00023999,2]
[402653037,1768746641864,-5411.96,0.00024,4]
[402653039,1768746641873,-2415.93031714,0.00024,2]
[402653041,1768746641883,-2259.63253658,0.00024,60]
[402653043,1768746641892,-1737.43172274,0.00024,2]
[402653045,1768746641901,-466.07574609,0.00024,2]
[402653047,1768746641909,-1023.77413932,0.00024,2]
[402653049,1768746641918,-1041.66666667,0.00024,7]
[402653051,1768746641927,-345.4,0.000241,7]
[402653053,1768746641936,-350.51,0.000241,7]
[402653055,1768746641945,-750.0,0.0002411,2]
[402653057,1768746641954,-550.0,0.0002411,2]
[402653059,1768746641967,-432288.642476,0.00024142,2]
[402653061,1768746641976,-151.0,0.00024142,2]
[402653063,1768746641986,-151.0,0.00024142,2]
[402653065,1768746641995,-155.709874,0.00024142,2]
[402653067,1768746642004,-151.0,0.00024142,2]
[402653069,1768746642012,-151.0,0.00024142,2]
[402653071,1768746642022,-237.574196,0.00024142,2]
[402653073,1768746642031,-237.574196,0.00024142,2]
[402653075,1768746642040,-1514.164988,0.00024142,2]
[402653076,1768746642049,-237.574196,0.00024142,2]
[402653078,1768746642058,-1514.164988,0.00024142,2]
[402653081,1768746642067,-237.574196,0.00024142,2]
[402653082,1768746642077,-1514.164988,0.00024142,2]
[402653084,1768746642086,-1514.164988,0.00024142,2]
[402653086,1768746642095,-151.0,0.00024142,2]
[402653088,1768746642104,-151.0,0.00024142,2]
[402653090,1768746642113,-151.0,0.00024142,2]
[402653092,1768746642122,-410.584963,0.00024142,2]
[402653094,1768746642132,-151.0,0.00024142,2]
[402653096,1768746642141,-410.584963,0.00024142,2]
[402653098,1768746642150,-151.0,0.00024142,2]
[402653100,1768746642158,-410.584963,0.00024142,2]
[402653102,1768746642167,-410.584963,0.00024142,2]
[402653104,1768746642177,-437.504812,0.00024142,2]
[402653106,1768746642186,-437.504812,0.00024142,2]
[402653108,1768746642195,-437.504812,0.00024142,2]
[402653110,1768746642204,-151.0,0.00024142,2]
[402653112,1768746642214,-151.0,0.00024142,2]
[402653113,1768746642222,-151.0,0.00024142,2]
[402653115,1768746642231,-151.0,0.00024142,2]
[402653116,1768746642240,-437.504812,0.00024142,2]
[402653117,1768746642250,-151.0,0.00024142,2]
[402653118,1768746642259,-317.901714,0.00024142,2]
[402653119,1768746642268,-151.0,0.00024142,2]
[402653120,1768746642279,-317.901714,0.00024142,2]
[402653121,1768746642288,-151.0,0.00024142,2]
[402653122,1768746642298,-1263.696835,0.00024142,2]
[402653123,1768746642307,-317.901714,0.00024142,2]
[402653124,1768746642317,-151.0,0.00024142,2]
[402653125,1768746642327,-1263.696835,0.00024142,2]
[402653126,1768746642336,-151.0,0.00024142,2]
[402653127,1768746642345,-151.0,0.00024142,2]
[402653128,1768746642355,-317.901714,0.00024142,2]
[402653129,1768746642364,-151.0,0.00024142,2]
[402653130,1768746642374,-1263.696835,0.00024142,2]
[402653131,1768746642383,-6827.3713806,0.00024158,2]
[402653132,1768746642392,-20482.1141419,0.00024158,2]
[402653133,1768746642402,-26991.08537678,0.000242,2]
[402653134,1768746642411,-188.0,0.00024219,12]
[402653136,1768746642421,-168.0,0.00024223,3]
[402653137,1768746642430,-3875.0,0.00024223,3]
[402653138,1768746642440,-203.0,0.00024236,120]
[402653139,1768746642449,-177.0,0.00024236,120]
[402653140,1768746642458,-177.0,0.00024236,120]
[402653141,1768746642467,-2000.0,0.00024295,7]
[402653142,1768746642476,-173.43533131,0.00024316,30]
[402653144,1768746642485,-503.23,0.000244,7]
[402653146,1768746642495,-5000.0,0.00024435,2]
[402653148,1768746642504,-105752.23651861,0.0002465,2]
[402653149,1768746642513,-738.73394624,0.00024658,2]
[402653150,1768746642523,-650.0,0.00024658,2]
[402653151,1768746642531,-380.0,0.00024658,2]
[402653152,1768746642540,-288.00242933,0.00024658,2]
[402653153,1768746642550,-200.0,0.00024658,2]
[402653154,1768746642559,-9282.50501487,0.00024672,2]
[402653155,1768746642568,-16839.28868662,0.00024774,2]
[402653156,1768746642578,-160.0,0.00024787,3]
[402653157,1768746642587,-173.43533131,0.00024789,30]
[402653158,1768746642596,-24837.5999278,0.000248,2]
[402653159,1768746642605,-177.0,0.00024892,120]
[402653160,1768746642614,-1234.94,0.000249,2]
[402653161,1768746642623,-8107.9951959,0.000249,2]
[402653162,1768746642633,-641937.696397,0.000249,2]
[402653163,1768746642642,-151.0,0.000249,7]
[402653165,1768746642651,-151.0,0.000249,7]
[402653166,1768746642661,-258.905432,0.000249,7]
[402653167,1768746642670,-151.0,0.000249,7]
[402653168,1768746642679,-237.574196,0.000249,7]
[402653169,1768746642689,-237.574196,0.000249,7]
[402653170,1768746642698,-1514.164988,0.000249,7]
[402653172,1768746642707,-237.574196,0.000249,7]
[402653173,1768746642716,-1514.164988,0.000249,7]
[402653174,1768746642725,-237.574196,0.000249,7]
[402653175,1768746642734,-1514.164988,0.000249,7]
[402653176,1768746642744,-1514.164988,0.000249,7]
[402653177,1768746642753,-151.0,0.000249,7]
[402653179,1768746642766,-151.0,0.000249,7]
[402653180,1768746642776,-151.0,0.000249,7]
[402653181,1768746642786,-410.584963,0.000249,7]
[402653183,1768746642795,-151.0,0.000249,7]
[402653184,1768746642804,-410.584963,0.000249,7]
[402653185,1768746642814,-151.0,0.000249,7]
[402653186,1768746642823,-410.584963,0.000249,7]
[402653187,1768746642832,-410.584963,0.000249,7]
[402653189,1768746642842,-437.504812,0.000249,7]
[402653190,1768746642851,-437.504812,0.000249,7]
[402653191,1768746642861,-437.504812,0.000249,7]
[402653192,1768746642870,-167.88,0.000249,7]
[402653193,1768746642880,-151.0,0.000249,7]
[402653195,1768746642890,-216.708594,0.000249,7]
[402653196,1768746642900,-151.0,0.000249,7]
[402653197,1768746642909,-151.0,0.000249,7]
[402653198,1768746642918,-437.504812,0.000249,7]
[402653199,1768746642928,-151.0,0.000249,2]
[402653200,1768746642937,-317.901714,0.000249,7]
[402653201,1768746642947,-288.05319,0.000249,2]
[402653202,1768746642957,-317.901714,0.000249,7]
[402653203,1768746642969,-151.0,0.000249,7]
[402653204,1768746642979,-1263.696835,0.000249,7]
[402653205,1768746642989,-317.901714,0.000249,7]
[402653206,1768746642999,-151.0,0.000249,7]
[402653207,1768746643009,-1263.696835,0.000249,7]
[402653208,1768746643019,-151.0,0.000249,7]
[402653209,1768746643029,-151.0,0.000249,7]
[402653210,1768746643038,-317.901714,0.000249,7]
[402653211,1768746643048,-168.0,0.00025,7]
[402653212,1768746643057,-293.36756331,0.00025,30]
[402653213,1768746643067,-1041.66666667,0.00025,30]
[402653214,1768746643076,-303440.40637164,0.00025,15]
[402653215,1768746643086,-1086.60508339,0.00025,2]
[402653216,1768746643096,-2677.40379814,0.00025,2]
[402653217,1768746643109,-10364.0,0.00025,2]
[402653218,1768746643119,-7220.75,0.00025,14]
[402653219,1768746643128,-500.0,0.00025,2]
[402653220,1768746643137,-3117.02164489,0.00025,5]
[402653221,1768746643146,-184427.354961,0.00025,8]
[402653222,1768746643155,-3307.71519374,0.00025,2]
[402653223,1768746643164,-159.0,0.00025,30]
[402653224,1768746643173,-432.93976309,0.00025,30]
[402653225,1768746643183,-1021.0,0.00025,2]
[402653226,1768746643192,-174.0,0.00025081,120]
[402653227,1768746643202,-500.0,0.000251,7]
[402653228,1768746643211,-36319.38,0.000251,2]
[402653229,1768746643220,-2000.0,0.0002511,7]
[402653230,1768746643230,-5000.0,0.00025157,2]
[402653231,1768746643239,-580.95208891,0.000252,5]
[402653232,1768746643248,-250.0,0.00025205,2]
[402653233,1768746643257,-750.0,0.00025205,2]
[402653234,1768746643266,-500.0,0.00025206,2]
[402653235,1768746643276,-173.43533131,0.00025261,30]
[402653236,1768746643286,-345.4,0.000253,7]
[402653237,1768746643295,-350.51,0.000253,7]
[402653238,1768746643305,-189.0,0.00025315,16]
[402653239,1768746643314,-800.0,0.00025338,2]
[402653240,1768746643324,-500.0,0.00025343,2]
[402653241,1768746643333,-150.86533834,0.00025425,30]
[402653242,1768746643343,-203.0,0.00025448,120]
[402653243,1768746643352,-177.0,0.00025448,120]
[402653244,1768746643361,-177.0,0.00025448,120]
[402653245,1768746643370,-729.0,0.00025465,3]
[402653246,1768746643378,-900.0,0.00025469,3]
[402653247,1768746643388,-3000.0,0.00025479,7]
[402653248,1768746643397,-200.0,0.0002548,2]
[402653249,1768746643407,-500.0,0.0002548,2]
[402653250,1768746643416,-1000.0,0.000255,2]
[402653251,1768746643425,-483.0,0.00025582,120]
[402653252,1768746643437,-289.0,0.00025582,120]
[402653253,1768746643447,-174.0,0.00025582,120]
[402653254,1768746643457,-150.86533834,0.00025589,30]
[402653255,1768746643466,-500.0,0.00025617,2]
[402653256,1768746643475,-8107.99519582,0.00025678,2]
[402653257,1768746643485,-503.23,0.000257,7]
[402653258,1768746643494,-150.86533834,0.00025726,30]
[402653259,1768746643504,-173.43533131,0.00025734,30]
[402653260,1768746643513,-350.0,0.00025753,2]
[402653261,1768746643522,-850.0,0.00025753,2]
[402653262,1768746643531,-500.0,0.00025754,2]
[402653263,1768746643540,-167.62815372,0.00025781,30]
[402653264,1768746643549,-1470.0,0.00025785,3]
[402653265,1768746643559,-160.0,0.00025838,4]
[402653266,1768746643568,-5000.0,0.00025879,2]
[402653267,1768746643577,-168.0,0.0002589,7]
[402653268,1768746643587,-150.86533834,0.0002589,30]
[402653269,1768746643596,-500.0,0.00025891,2]
[402653270,1768746643606,-2000.0,0.00025925,7]
[402653271,1768746643615,-986.85610907,0.00025999,2]
[402653272,1768746643624,-19147.29189471,0.00026,10]
[402653273,1768746643634,-530.1538491,0.00026,2]
[402653274,1768746643643,-303246.14221477,0.00026,30]
[402653275,1768746643653,-19900.0,0.00026,2]
[402653276,1768746643662,-1041.66666667,0.00026,10]
[402653277,1768746643671,-2452.73070881,0.00026,2]
[402653278,1768746643680,-747.49594516,0.00026,120]
[402653279,1768746643691,-161.0,0.00026,5]
[402653280,1768746643700,-1041.66666667,0.00026,30]
[402653281,1768746643716,-1021.0,0.00026,2]
[402653282,1768746643737,-192.137283,0.00026,7]
[402653283,1768746643751,-151.0,0.00026,7]
[402653284,1768746643761,-239.000318,0.00026,7]
[402653285,1768746643770,-237.574196,0.00026,7]
[402653286,1768746643779,-237.574196,0.00026,7]
[402653287,1768746643788,-1514.164988,0.00026,7]
[402653288,1768746643797,-237.574196,0.00026,7]
[402653289,1768746643806,-1514.164988,0.00026,7]
[402653290,1768746643816,-237.574196,0.00026,7]
[402653291,1768746643825,-1514.164988,0.00026,7]
[402653292,1768746643834,-1514.164988,0.00026,7]
[402653293,1768746643845,-151.0,0.00026,7]
[402653294,1768746643856,-151.0,0.00026,7]
[402653295,1768746643871,-151.0,0.00026,7]
[402653296,1768746643881,-410.584963,0.00026,7]
[402653297,1768746643896,-151.0,0.00026,7]
[402653298,1768746643908,-410.584963,0.00026,7]
[402653299,1768746643918,-151.0,0.00026,7]
[402653300,1768746643927,-410.584963,0.00026,7]
[402653301,1768746643936,-410.584963,0.00026,7]
[402653302,1768746643946,-437.504812,0.00026,7]
[402653303,1768746643956,-437.504812,0.00026,7]
[402653304,1768746643969,-151.0,0.00026,7]
[402653305,1768746643979,-151.0,0.00026,7]
[402653306,1768746643988,-437.504812,0.00026,7]
[402653307,1768746643998,-194.297621,0.00026,7]
[402653308,1768746644011,-437.504812,0.00026,7]
[402653309,1768746644020,-1041.66666667,0.00026,7]
[402653310,1768746644030,-151.0,0.00026,2]
[402653311,1768746644040,-317.901714,0.00026,7]
[402653312,1768746644050,-317.901714,0.00026,7]
[402653313,1768746644059,-151.0,0.00026,7]